bitfinex/quotes_ETHUSD_20230118
["timestamp","ask_amount","ask_price","bid_price","bid_amount"]
[1674059303086,6.65296,1518.2,1517.3,6.65645]
[1674059303292,1.0,1518.1,1517.4,1.0]
[1674059303696,6.65296,1518.2,1517.4,1.0]
[1674059303908,7.08138,1518.1,1517.4,1.40336442]
[1674059304150,6.65328,1518.1,1517.4,1.40336442]
[1674059304367,6.65328,1518.1,1517.3,1.0]
[1674059304368,6.58837,1517.9,1517.3,1.0]
[1674059304581,7.08288,1517.8,1517.3,1.0]
[1674059304799,7.08288,1517.8,1517.0,0.066]
[1674059304800,6.65468,1517.8,1517.0,0.066]
[1674059304963,7.08335,1517.7,1516.9,0.37413382]
[1674059305174,7.14935,1517.7,1516.9,7.34062764]
[1674059305463,7.65505,1517.7,1517.0,1.0]
[1674059305603,0.066,1517.7,1517.0,15.0]
[1674059305958,0.066,1517.8,1517.3,14.0]
[1674059306112,6.65406,1517.9,1517.3,14.066]
[1674059306703,6.65406,1517.9,1517.3,0.066]
[1674059306845,7.65406,1517.9,1517.3,14.0]
[1674059307055,7.65406,1517.9,1517.3,0.066]
[1674059307056,6.65406,1517.9,1517.3,0.066]
[1674059307423,6.65406,1517.9,1517.0,1.37413382]
[1674059307598,0.4942,1517.8,1517.0,1.37413382]
[1674059307811,6.58935,1517.6,1517.0,1.37413382]
[1674059307997,6.65535,1517.6,1517.0,1.0]
[1674059308422,13.2447,1517.6,1517.0,0.37404898]
[1674059309004,20.0847,1517.6,1516.9,0.066]
[1674059309167,0.4943,1517.5,1516.7,0.066]
[1674059309370,6.59082,1517.3,1516.5,17.92991]
[1674059309605,6.65682,1517.3,1516.7,14.0]
[1674059309812,6.65682,1517.3,1516.9,14.0]
[1674059309813,0.066,1517.3,1516.9,14.0]
[1674059310021,0.066,1517.4,1517.1,14.0]
[1674059310325,6.04623846,1517.5,1517.1,14.066]
[1674059310541,0.066,1517.5,1517.2,1.39100349]
[1674059310740,6.65509,1517.7,1517.2,1.39100349]
[1674059310946,6.65509,1517.7,1517.3,0.39100349]
[1674059310947,0.066,1517.7,1517.3,0.39100349]
[1674059311163,6.65471,1517.8,1517.3,0.39100349]
[1674059311398,6.65471,1517.8,1517.1,14.066]
[1674059311399,13.24358,1517.8,1517.1,14.066]
[1674059311609,14.6723,1517.7,1517.1,0.066]
[1674059311850,14.7383,1517.7,1516.8,14.066]
[1674059312366,14.7383,1517.7,1516.8,0.066]
[1674059312367,18.40994614,1517.7,1516.8,0.066]
[1674059312580,13.18078,1517.4,1516.5,11.396]
[1674059312749,7.3344,1517.3,1516.6,1.0]
[1674059313106,13.18312,1517.1,1516.6,1.0]
[1674059313264,6.65756,1517.1,1516.6,1.0]
[1674059313475,0.066,1517.1,1516.8,14.0]
[1674059313681,6.59085,1517.3,1516.8,14.0]
[1674059313682,13.24789,1517.3,1516.8,0.066]
[1674059313884,13.24789,1517.3,1516.7,14.0]
[1674059314145,6.59116,1517.2,1516.7,0.066]
[1674059314464,13.24832,1517.2,1516.5,0.066]
[1674059314783,13.18532,1516.9,1516.4,2.83215605]
[1674059314993,13.25132,1516.9,1516.4,1.83215605]
[1674059315517,13.74582,1516.9,1516.4,1.83215605]
[1674059315833,19.78002,1516.7,1516.4,1.83215605]
[1674059315986,19.84602,1516.7,1516.4,1.83215605]
[1674059316729,13.25268,1516.7,1516.4,1.83215605]
[1674059317044,6.65969,1516.7,1516.4,1.83215605]
[1674059317481,0.066,1516.7,1516.4,2.83215605]
[1674059317724,6.86011118,1516.8,1516.4,1.83215605]
[1674059317951,6.92611118,1516.8,1516.4,1.83215605]
[1674059318619,13.51931118,1516.8,1516.4,1.83215605]
[1674059319454,14.01391118,1516.8,1516.4,1.83215605]
[1674059319671,0.4946,1516.7,1516.4,1.83215605]
[1674059319922,19.78107,1516.6,1516.4,1.83215605]
[1674059320132,0.066,1516.6,1516.4,1.83215605]
[1674059320349,7.5933,1516.7,1516.4,1.83215605]
[1674059320527,6.6593,1516.7,1516.4,1.83215605]
[1674059320931,13.2526,1516.7,1516.4,1.83215605]
[1674059321384,6.6593,1516.7,1516.4,1.83215605]
[1674059321605,0.066,1516.7,1516.4,1.83215605]
[1674059321771,6.92611118,1516.8,1516.4,1.83215605]
[1674059321985,13.51930118,1516.8,1516.5,1.0]
[1674059322648,13.51930118,1516.8,1516.4,1.83215605]
[1674059323490,0.4946,1516.7,1516.4,1.83215605]
[1674059323663,19.78107,1516.6,1516.4,1.83215605]
[1674059323873,19.84707,1516.6,1516.4,1.83215605]
[1674059324305,26.68707,1516.6,1516.4,1.83215605]
[1674059324502,0.4947,1516.5,1516.3,2.6337781]
[1674059324746,26.37824,1516.4,1516.3,2.3677781]
[1674059324931,19.84968,1516.4,1516.3,2.3677781]
[1674059325917,6.66056,1516.4,1516.3,2.3677781]
[1674059326125,0.066,1516.4,1516.3,2.3677781]
[1674059326340,6.59456,1516.4,1516.3,2.3677781]
[1674059326497,14.25512,1516.4,1516.3,2.3677781]
[1674059327397,13.25512,1516.4,1516.3,2.3677781]
[1674059327972,13.74982,1516.4,1516.3,2.3677781]
[1674059328529,13.25512,1516.4,1516.3,2.3677781]
[1674059328958,0.066,1516.4,1516.3,2.3677781]
[1674059329140,6.65997,1516.6,1516.3,2.3677781]
[1674059329499,0.066,1516.6,1516.3,2.3677781]
[1674059329816,13.18848,1516.5,1516.3,2.3677781]
[1674059330130,13.25448,1516.5,1516.3,2.3677781]
[1674059330341,13.74918,1516.5,1516.3,2.3677781]
[1674059330668,14.18912,1516.4,1516.3,2.3677781]
[1674059330807,14.25512,1516.4,1516.3,2.3677781]
[1674059331482,14.74982,1516.4,1516.3,2.3677781]
[1674059332072,14.74982,1516.4,1516.3,0.19090337]
[1674059332488,0.18064405,1516.2,1515.8,1.106596]
[1674059332744,26.3852,1516.0,1515.8,1.106596]
[1674059332974,13.68838,1515.9,1515.8,1.106596]
[1674059333159,13.75438,1515.9,1515.8,1.106596]
[1674059333332,0.5609,1515.9,1515.8,1.106596]
[1674059333706,1.4949,1515.9,1515.8,1.106596]
[1674059334012,0.066,1516.1,1515.8,1.106596]
[1674059334169,0.18064405,1516.2,1515.8,15.106596]
[1674059334380,0.18064405,1516.2,1515.5,0.23816826]
[1674059334611,0.18064405,1516.2,1515.8,0.064]
[1674059334844,0.18064405,1516.2,1515.8,14.0]
[1674059335170,0.18064405,1516.2,1515.8,14.066]
[1674059335538,0.18064405,1516.2,1515.8,14.46642784]
[1674059335959,0.18064405,1516.2,1515.8,0.066]
[1674059336125,0.18064405,1516.2,1516.0,14.0]
[1674059336296,1.0,1516.7,1516.0,14.066]
[1674059336514,0.066,1516.9,1516.1,0.81792784]
[1674059336699,1.32167741,1517.0,1516.1,1.40042784]
[1674059336917,6.84,1516.8,1516.0,0.4226]
[1674059337127,6.84,1516.8,1515.9,0.066]
[1674059337128,0.4946,1516.7,1515.9,0.066]
[1674059337370,0.4946,1516.7,1515.8,14.066]
[1674059337371,3.9946,1516.7,1515.8,14.066]
[1674059337651,4.5,1516.6,1515.8,0.066]
[1674059337867,0.4947,1516.5,1515.5,0.30416826]
[1674059338071,3.5,1516.4,1515.5,0.17816826]
[1674059338279,0.4947,1516.3,1515.5,0.17816826]
[1674059338549,7.84,1516.2,1515.5,0.17816826]
[1674059338699,7.906,1516.2,1515.5,0.17816826]
[1674059338911,0.4948,1516.1,1515.5,0.17816826]
[1674059339492,1.4948,1516.1,1515.5,0.17816826]
[1674059339976,0.4948,1516.2,1515.5,0.17816826]
[1674059340185,0.066,1516.3,1515.7,1.0]
[1674059340186,0.4947,1516.3,1515.7,1.0]
[1674059340415,5.91,1516.6,1516.0,14.0]
[1674059340416,0.5606,1516.6,1516.0,14.0]
[1674059340625,0.37126466,1516.7,1516.0,14.0]
[1674059340626,0.31126466,1516.7,1516.0,14.066]
[1674059340814,0.31126466,1516.7,1516.2,14.0]
[1674059341044,0.31126466,1516.7,1516.2,0.066]
[1674059341256,0.31126466,1516.7,1516.4,1.0]
[1674059341500,0.31126466,1516.7,1516.5,14.0]
[1674059341720,0.31126466,1516.7,1516.5,0.066]
[1674059342011,0.26634533,1516.6,1516.5,0.476]
[1674059342746,0.31126466,1516.7,1516.5,16.024]
[1674059342920,0.31126466,1516.7,1516.5,16.09]
[1674059343269,0.31126466,1516.7,1516.6,1.7571]
[1674059344006,0.31126466,1516.7,1516.6,1.266]
[1674059344387,0.31126466,1516.7,1516.4,1.0]
[1674059344602,0.31126466,1516.7,1516.2,0.066]
[1674059344794,0.31126466,1516.7,1516.1,1.0]
[1674059345000,0.31126466,1516.7,1515.9,14.5609]
[1674059345001,0.55577502,1516.7,1515.9,14.5609]
[1674059345248,0.55577502,1516.7,1515.9,14.066]
[1674059345475,0.55577502,1516.7,1516.1,14.0]
[1674059345788,0.55577502,1516.7,1516.1,14.066]
[1674059346030,0.31126466,1516.7,1516.4,14.0]
[1674059346199,0.31126466,1516.7,1516.6,14.0]
[1674059346366,0.31126466,1516.7,1516.6,0.542]
[1674059346581,4.04251445,1517.3,1516.6,0.476]
[1674059346788,0.72997942,1517.3,1516.6,14.476]
[1674059347015,0.72997942,1517.3,1516.7,1.0]
[1674059347016,0.4944,1517.2,1516.7,1.0]
[1674059347247,0.04504374,1517.3,1516.7,1.0]
[1674059347248,0.04504374,1517.3,1516.7,15.0]
[1674059347416,0.04504374,1517.3,1516.9,14.0]
[1674059347643,0.04504374,1517.3,1516.9,0.066]
[1674059347842,0.04504374,1517.3,1516.7,15.066]
[1674059348208,0.04504374,1517.3,1516.7,15.7521]
[1674059348526,0.04504374,1517.3,1516.9,14.0]
[1674059348734,0.04504374,1517.3,1516.9,0.066]
[1674059348947,0.04504374,1517.3,1516.6,1.0]
[1674059349137,0.72997942,1517.3,1516.6,1.0]
[1674059349560,0.68493568,1517.2,1516.6,1.0]
[1674059349892,0.04504374,1517.3,1516.6,1.0]
[1674059350050,0.11359609,1517.5,1516.8,15.0]
[1674059350262,0.04759609,1517.5,1517.0,14.0]
[1674059350613,0.04759609,1517.5,1517.0,14.066]
[1674059350840,0.04759609,1517.5,1517.2,14.0]
[1674059351167,6.09e-06,1517.5,1517.4,22.0]
[1674059351383,0.005169,1517.7,1517.4,31.65622]
[1674059351534,0.005169,1517.7,1517.6,14.0]
[1674059351744,1.07957245,1518.1,1517.6,8.68735]
[1674059351995,0.04867448,1518.1,1517.8,8.0]
[1674059352226,0.04867448,1518.1,1517.9,6.58804]
[1674059352436,0.04867448,1518.1,1518.0,3.0]
[1674059352587,0.04867448,1518.1,1518.0,9.58761]
[1674059352796,0.04867448,1518.1,1518.0,6.65361]
[1674059353064,0.04867448,1518.1,1518.0,0.066]
[1674059353219,0.04867448,1518.1,1517.9,7.58804]
[1674059353220,0.68267448,1518.1,1517.9,1.066]
[1674059353436,14.49377621,1518.1,1517.9,1.0]
[1674059353638,15.05387621,1518.1,1517.9,1.0]
[1674059353900,0.80953495,1517.8,1517.5,0.066]
[1674059354109,7.39808495,1517.8,1517.2,14.066]
[1674059354263,6.58936,1517.6,1517.2,0.066]
[1674059354478,6.58936,1517.6,1517.0,1.0]
[1674059354479,0.73757814,1517.5,1517.0,1.0]
[1674059354727,19.77066,1517.4,1517.0,1.0]
[1674059354946,19.77324,1517.2,1516.6,0.126]
[1674059355170,19.77651,1517.0,1516.4,14.066]
[1674059355382,19.84251,1517.0,1516.4,0.066]
[1674059355723,19.84251,1517.0,1516.2,0.066]
[1674059355724,0.4945,1516.9,1516.2,0.066]
[1674059356013,0.4945,1516.9,1516.2,1.0]
[1674059356014,19.7799,1516.7,1516.2,1.0]
[1674059356231,19.7799,1516.7,1516.0,14.066]
[1674059356232,6.59447,1516.5,1516.0,0.066]
[1674059356400,6.66047,1516.5,1516.0,14.0]
[1674059356608,28.184,1516.3,1516.0,14.066]
[1674059356825,28.25,1516.3,1516.2,14.0]
[1674059357050,28.25,1516.3,1516.2,14.066]
[1674059357248,28.25,1516.3,1516.2,0.066]
[1674059357435,28.25,1516.3,1516.1,1.0]
[1674059357644,34.84505,1516.3,1516.1,1.0]
[1674059358124,28.25,1516.3,1516.2,14.0]
[1674059358275,28.25,1516.3,1516.2,14.066]
[1674059358489,28.25,1516.3,1516.2,0.542]
[1674059358696,28.25,1516.3,1516.2,14.476]
[1674059358906,18.90636516,1516.3,1516.2,14.542]
[1674059359169,18.72216516,1516.3,1516.2,14.542]
[1674059359574,18.72216516,1516.3,1516.2,1.066]
[1674059359789,18.72216516,1516.3,1516.2,1.0]
[1674059360109,18.72216516,1516.3,1516.0,14.0]
[1674059360110,19.21686516,1516.3,1516.0,14.0]
[1674059360436,6.59563,1516.2,1516.0,0.066]
[1674059360652,6.59563,1516.2,1516.1,14.0]
[1674059360653,0.066,1516.2,1516.1,14.0]
[1674059360966,18.65616516,1516.3,1516.1,14.066]
[1674059360967,18.72216516,1516.3,1516.1,14.066]
[1674059361117,18.67216516,1516.3,1516.1,14.066]
[1674059361694,18.67216516,1516.3,1516.2,1.0]
[1674059361866,18.67016516,1516.3,1516.1,14.066]
[1674059362074,18.67216516,1516.3,1516.1,14.066]
[1674059362269,18.67216516,1516.3,1516.1,0.066]
[1674059362479,18.67216516,1516.3,1515.9,15.0]
[1674059362480,25.26736516,1516.3,1515.9,0.066]
[1674059362713,6.59618,1516.1,1515.5,0.17816826]
[1674059362942,0.4948,1516.0,1515.5,0.17816826]
[1674059363112,13.19445,1515.8,1515.5,0.17816826]
[1674059363322,7.09269,1515.7,1515.5,0.17816826]
[1674059363597,0.066,1515.7,1515.5,0.17816826]
[1674059363804,30.82819,1515.8,1515.5,0.17816826]
[1674059364365,14.19552,1515.7,1515.5,0.17816826]
[1674059364638,7.66361,1515.7,1515.5,0.17816826]
[1674059364842,7.15851,1515.7,1515.5,0.17816826]
[1674059365001,0.066,1515.7,1515.5,0.17816826]
[1674059365208,30.82819,1515.8,1515.5,0.17816826]
[1674059365487,38.9904,1515.8,1515.5,0.17816826]
[1674059365797,38.9904,1515.8,1515.4,0.16967935]
[1674059365798,13.19608,1515.6,1515.4,0.16967935]
[1674059366003,0.495,1515.5,1515.4,0.16967935]
[1674059366218,13.69196,1515.5,1515.4,0.16967935]
[1674059366544,0.561,1515.5,1515.4,0.16967935]
[1674059366840,7.59804,1515.6,1515.4,0.16967935]
[1674059366841,0.066,1515.6,1515.4,14.64567935]
[1674059367055,30.8283,1515.8,1515.4,14.71167935]
[1674059367207,37.42586,1515.8,1515.4,14.71167935]
[1674059367424,31.3232,1515.8,1515.4,0.23567935]
[1674059367737,37.92076,1515.8,1515.4,0.16967935]
[1674059367954,37.42586,1515.8,1515.4,0.16967935]
[1674059368218,1.0,1515.7,1515.4,0.16967935]
[1674059368372,7.59765,1515.7,1515.4,0.16967935]
[1674059368732,1.0,1515.6,1515.3,0.18144657]
[1674059369159,13.69196,1515.5,1515.3,0.18144657]
[1674059369310,13.75796,1515.5,1515.3,0.18144657]
[1674059370061,6.59891,1515.4,1515.3,0.18144657]
[1674059370257,13.26382,1515.4,1515.3,0.18144657]
[1674059370726,13.75882,1515.4,1515.3,0.18144657]
[1674059370942,14.75882,1515.4,1515.3,0.18144657]
[1674059371129,19.79934,1515.2,1515.1,0.0046088]
[1674059371414,21.91444,1515.2,1514.9,0.004]
[1674059371625,21.91444,1515.2,1514.6,0.18554778]
[1674059371626,9.03329497,1515.0,1514.6,0.18554778]
[1674059371868,13.20306,1514.8,1514.6,0.18554778]
[1674059372082,13.69912,1514.7,1514.6,0.18554778]
[1674059372360,14.5103529,1514.7,1514.2,0.02102]
[1674059372572,3.0,1514.6,1514.2,0.02102]
[1674059372887,21.36249,1514.5,1514.2,0.02102]
[1674059373097,1.56,1514.3,1514.1,0.00402685]
[1674059373311,0.4954,1514.2,1514.1,0.00402685]
[1674059373535,7.09954,1514.2,1514.0,0.2025826]
[1674059373837,7.16554,1514.2,1514.0,0.2025826]
[1674059374090,1.565,1514.1,1514.0,0.2025826]
[1674059374417,1.565,1514.1,1513.9,0.0046088]
[1674059374418,14.77416,1514.1,1513.9,0.0046088]
[1674059374568,13.27516,1514.1,1513.9,0.0046088]
[1674059374779,1.0,1514.0,1513.9,0.0046088]
[1674059374988,0.81150507,1514.0,1513.9,0.4806088]
[1674059375195,0.81150507,1514.0,1513.9,0.0046088]
[1674059375438,6.67058,1514.1,1513.9,0.4806088]
[1674059375439,0.066,1514.1,1513.9,0.4806088]
[1674059375632,22.687,1514.0,1513.9,0.4806088]
[1674059375861,22.753,1514.0,1513.9,0.0046088]
[1674059376678,22.753,1514.0,1513.9,0.4806088]
[1674059376937,22.753,1514.0,1513.9,0.0046088]
[1674059377633,29.35801,1514.0,1513.9,0.0046088]
[1674059377824,29.85351,1514.0,1513.9,0.0046088]
[1674059378043,29.35801,1514.0,1513.9,0.0046088]
[1674059378492,29.85351,1514.0,1513.9,0.0046088]
[1674059378717,29.85351,1514.0,1513.0,3.566]
[1674059378718,31.41851,1514.0,1513.0,3.566]
[1674059379021,4.5,1513.9,1512.9,0.17019832]
[1674059379226,19.82028,1513.6,1512.9,1.37089832]
[1674059379512,19.82382,1513.4,1512.9,0.04419832]
[1674059379752,19.88982,1513.4,1512.9,0.04419832]
[1674059379941,23.88552,1513.4,1512.9,0.04419832]
[1674059380151,19.82577,1513.2,1512.9,0.04419832]
[1674059380374,1.565,1513.1,1512.9,0.04419832]
[1674059380592,19.82814,1513.0,1512.9,0.04419832]
[1674059380779,19.70277377,1513.0,1512.9,0.52019832]
[1674059381136,0.066,1513.0,1512.9,0.52019832]
[1674059381359,18.10420189,1513.0,1512.9,0.87649832]
[1674059381656,18.10420189,1513.0,1512.9,1.25575895]
[1674059382080,18.10420189,1513.0,1512.9,3.87649832]
[1674059382251,18.10420189,1513.0,1512.9,4.52019832]
[1674059382445,18.10420189,1513.0,1512.9,11.96639832]
[1674059382653,18.10420189,1513.0,1512.9,12.41165895]
[1674059382866,16.10420189,1513.0,1512.9,12.02147895]
[1674059383078,15.10420189,1513.0,1512.9,19.64221832]
[1674059383497,14.10420189,1513.0,1512.9,11.64221832]
[1674059383916,14.10420189,1513.0,1512.9,3.5122]
[1674059384176,14.10420189,1513.0,1512.9,3.4462]
[1674059384988,11.08003107,1513.0,1512.9,3.4462]
[1674059385178,9.08452178,1513.0,1512.9,18.05602]
[1674059385437,5.30237059,1513.0,1512.9,18.12202]
[1674059385649,5.30237059,1513.0,1512.9,11.5122]
[1674059385809,5.30237059,1513.0,1512.9,4.5122]
[1674059386020,5.30237059,1513.0,1512.9,4.4462]
[1674059386275,5.30237059,1513.0,1512.9,3.4462]
[1674059386497,3.466527,1513.0,1512.9,0.4462]
[1674059386680,3.400527,1513.0,1512.9,0.4462]
[1674059387123,3.400527,1513.0,1512.8,15.172596]
[1674059387524,3.400527,1513.0,1512.8,23.172596]
[1674059387852,3.400527,1513.0,1512.8,15.172596]
[1674059388294,3.400527,1513.0,1512.8,1.172596]
[1674059388453,16.619387,1513.0,1512.8,1.106596]
[1674059388672,16.685387,1513.0,1512.8,1.106596]
[1674059388905,10.075907,1513.0,1512.8,1.106596]
[1674059389103,9.975907,1513.0,1512.8,1.106596]
[1674059389518,3.366527,1513.0,1512.9,14.0]
[1674059389769,3.300527,1513.0,1512.9,14.542]
[1674059389994,0.066,1513.2,1512.9,14.542]
[1674059390148,6.60774,1513.4,1513.1,14.0]
[1674059390364,6.67374,1513.4,1513.1,14.066]
[1674059390676,0.066,1513.4,1513.1,14.066]
[1674059390918,6.67292,1513.6,1513.3,14.0]
[1674059391134,6.67292,1513.6,1513.5,14.0]
[1674059391345,6.67292,1513.6,1513.5,0.066]
[1674059391515,0.066,1513.6,1513.5,14.476]
[1674059391864,6.60661,1513.7,1513.5,14.542]
[1674059391865,0.066,1513.7,1513.5,14.542]
[1674059392074,6.67182,1513.9,1513.5,14.542]
[1674059392286,7.16732,1513.9,1513.5,0.542]
[1674059392566,6.67182,1513.9,1513.7,14.0]
[1674059392809,0.04030733,1513.8,1513.7,0.542]
[1674059392999,0.04030733,1513.8,1513.7,0.476]
[1674059393325,6.60953733,1514.0,1513.6,0.002]
[1674059393536,6.60585,1513.9,1513.5,0.066]
[1674059393766,6.67185,1513.9,1513.7,14.0]
[1674059393937,0.066,1513.9,1513.7,14.066]
[1674059394145,13.27577,1514.1,1513.7,14.066]
[1674059394356,6.67085,1514.1,1513.9,14.0]
[1674059394612,6.67085,1514.1,1513.9,14.066]
[1674059394829,0.066,1514.1,1513.9,14.066]
[1674059395063,0.066,1514.2,1513.9,22.066]
[1674059395346,7.09842,1514.5,1513.9,22.066]
[1674059395347,0.066,1514.5,1514.1,22.0]
[1674059395561,6.66183,1514.8,1514.4,14.0]
[1674059395562,0.066,1514.8,1514.4,14.0]
[1674059395754,6.60410497,1515.0,1514.4,0.066]
[1674059395755,1.0,1514.9,1514.4,0.066]
[1674059395969,13.20397,1514.7,1514.1,0.066]
[1674059396140,13.21997,1514.7,1514.0,14.066]
[1674059396368,13.26997,1514.7,1514.4,14.0]
[1674059396581,13.26997,1514.7,1514.4,0.066]
[1674059396827,13.26997,1514.7,1514.5,14.0]
[1674059397055,0.066,1514.7,1514.5,14.066]
[1674059397261,0.066,1514.9,1514.5,22.066]
[1674059397479,0.00329497,1515.0,1514.6,14.0]
[1674059397686,13.20512497,1515.0,1514.6,14.066]
[1674059397900,6.60136,1514.9,1514.6,14.066]
[1674059398112,6.66736,1514.9,1514.6,14.066]
[1674059398420,6.66736,1514.9,1514.6,0.066]
[1674059398421,13.11872,1514.9,1514.6,0.066]
[1674059398745,13.11872,1514.9,1514.5,14.0]
[1674059398746,3.33797873,1514.9,1514.5,14.0]
[1674059398901,3.33797873,1514.9,1514.7,14.0]
[1674059398902,3.27197873,1514.9,1514.7,14.0]
[1674059399258,0.63674173,1514.8,1514.7,0.066]
[1674059399572,0.0650137,1514.6,1514.1,14.066]
[1674059399744,20.30445,1514.5,1514.1,0.066]
[1674059399963,20.30445,1514.5,1513.8,0.06]
[1674059399964,21.00719173,1514.5,1513.6,15.066]
[1674059400146,6.84,1514.4,1513.6,15.066]
[1674059400361,6.84,1514.4,1513.6,0.066]
[1674059400362,19.81296,1514.2,1513.6,0.066]
[1674059400623,0.4954,1514.1,1513.2,14.066]
[1674059400834,19.81728,1513.9,1513.3,1.0]
[1674059401063,20.37878,1513.9,1513.3,15.0]
[1674059401418,20.37878,1513.9,1513.3,0.066]
[1674059401419,1.0,1513.8,1513.3,0.066]
[1674059401591,20.31522,1513.7,1513.1,0.066]
[1674059401742,21.37826,1513.5,1512.8,1.106596]
[1674059401949,0.4957,1513.4,1512.8,1.106596]
[1674059402164,26.43363,1513.3,1512.8,1.179266]
[1674059402373,6.84,1513.0,1512.8,1.179266]
[1674059402586,1.0,1512.8,1512.3,0.06]
[1674059402792,27.16526,1512.9,1512.3,14.0]
[1674059402793,7.17162,1512.9,1512.3,14.0]
[1674059403004,6.61093,1512.7,1512.3,14.066]
[1674059403261,6.67693,1512.7,1512.3,0.03528348]
[1674059403419,0.4959,1512.6,1512.1,14.79648623]
[1674059403633,6.67693,1512.7,1512.3,14.0]
[1674059403846,0.066,1512.7,1512.3,14.03528348]
[1674059404123,0.066,1512.9,1512.7,0.06061236]
[1674059404340,6.60919,1513.1,1512.7,14.06061236]
[1674059404473,6.67519,1513.1,1512.7,14.09589584]
[1674059404821,13.28438,1513.1,1512.7,0.09589584]
[1674059405164,13.28438,1513.1,1512.7,0.06061236]
[1674059405312,0.066,1513.1,1513.0,14.0]
[1674059405526,6.60858,1513.2,1513.0,14.03528348]
[1674059405527,0.066,1513.2,1513.0,14.03528348]
[1674059405874,6.60861,1513.2,1513.0,0.03528348]
[1674059406097,6.67461,1513.2,1512.7,0.06061236]
[1674059406467,1.0,1513.1,1512.7,0.06061236]
[1674059406678,19.82832,1513.0,1512.7,0.06061236]
[1674059406928,19.89432,1513.0,1512.7,0.06061236]
[1674059407584,6.61025,1512.8,1512.7,0.06061236]
[1674059407791,13.2865,1512.8,1512.7,0.06061236]
[1674059408358,13.7824,1512.8,1512.7,0.06061236]
[1674059408691,13.2865,1512.8,1512.7,0.06061236]
[1674059409114,0.066,1512.8,1512.7,14.06061236]
[1674059409323,6.67612,1512.9,1512.7,14.09589584]
[1674059409556,13.28624,1512.9,1512.7,0.09589584]
[1674059409768,6.67612,1512.9,1512.7,0.06061236]
[1674059410149,6.67612,1512.9,1512.5,0.03528348]
[1674059410364,6.6107,1512.7,1512.4,14.0]
[1674059410573,6.6767,1512.7,1512.4,0.03528348]
[1674059410778,6.6767,1512.7,1512.6,14.0]
[1674059411037,0.066,1512.7,1512.6,14.03528348]
[1674059411259,6.61027,1512.8,1512.6,0.03528348]
[1674059411408,6.67627,1512.8,1512.4,14.03528348]
[1674059411617,6.67627,1512.8,1512.6,14.0]
[1674059411618,0.066,1512.8,1512.6,14.0]
[1674059411823,0.066,1513.0,1512.7,8.0]
[1674059412106,6.66771,1513.4,1512.9,14.0]
[1674059412107,0.066,1513.4,1512.9,14.0]
[1674059412273,0.066,1513.5,1513.3,14.0]
[1674059412463,6.67291,1513.6,1513.3,14.03528348]
[1674059412672,6.67291,1513.6,1513.5,22.0]
[1674059412673,0.066,1513.6,1513.5,22.0]
[1674059412890,0.04062894,1513.8,1513.5,25.03528348]
[1674059413213,0.04062894,1513.8,1513.7,22.0]
[1674059413454,0.066,1514.3,1513.7,23.59228348]
[1674059413627,6.66944,1514.4,1514.2,14.0]
[1674059413840,0.066,1514.4,1514.2,14.03528348]
[1674059414065,0.0650137,1514.6,1514.2,14.03528348]
[1674059414276,0.0650137,1514.6,1514.5,14.0]
[1674059414616,0.0650137,1514.6,1514.5,0.03528348]
[1674059414823,0.0650137,1514.6,1514.3,14.0]
[1674059414824,0.0650137,1514.6,1514.3,14.03528348]
[1674059415260,0.0650137,1514.6,1514.5,14.0]
[1674059415583,0.0650137,1514.6,1514.5,14.56528348]
[1674059415771,0.0650137,1514.6,1514.5,17.56528348]
[1674059415941,0.0650137,1514.6,1514.5,14.56528348]
[1674059416152,3.7e-06,1514.6,1514.5,0.56528348]
[1674059416480,3.7e-06,1514.6,1514.5,0.53]
[1674059416840,3.7e-06,1514.6,1514.5,8.53]
[1674059417010,0.00329497,1515.0,1514.5,8.63787348]
[1674059417220,0.00329497,1515.0,1514.9,22.0]
[1674059417411,0.04062894,1515.2,1514.9,22.0]
[1674059417412,0.04062894,1515.2,1514.9,41.83637348]
[1674059417742,0.04200231,1515.5,1515.2,13.1994]
[1674059417950,1.04200231,1515.5,1515.4,22.15891]
[1674059418166,1.04200231,1515.5,1515.4,18.59528348]
[1674059418389,1.04200231,1515.5,1515.4,26.59528348]
[1674059418390,0.04200231,1515.5,1515.4,26.59528348]
[1674059418626,0.04200231,1515.5,1515.4,18.66783348]
[1674059418855,0.04200231,1515.5,1515.4,26.66783348]
[1674059418983,0.04200231,1515.5,1515.4,18.66783348]
[1674059419199,0.04200231,1515.5,1515.4,15.66783348]
[1674059419421,0.04200231,1515.5,1515.4,26.66783348]
[1674059419422,2.31e-06,1515.5,1515.4,26.66783348]
[1674059419639,0.04182805,1516.2,1515.4,26.66783348]
[1674059419893,0.04182805,1516.2,1515.4,8.26742348]
[1674059420040,0.4948,1516.1,1515.8,14.0]
[1674059420257,0.4948,1516.1,1515.2,8.06]
[1674059420258,4.24384447,1515.7,1515.3,0.06]
[1674059420510,4.24384447,1515.7,1515.6,14.0]
[1674059420697,4.24384447,1515.7,1515.6,14.066]
[1674059421058,0.066,1515.8,1515.6,35.266]
[1674059421352,0.04182805,1516.2,1515.7,21.43036]
[1674059421510,1.0,1516.4,1515.7,21.43036]
[1674059421511,1.0,1516.4,1516.1,30.16087]
[1674059421722,0.066,1516.8,1516.3,23.564]
[1674059421953,0.00908,1517.1,1516.7,14.0]
[1674059422147,0.00908,1517.1,1516.9,14.0]
[1674059422385,0.00908,1517.1,1516.9,14.066]